Cogmind - Beta 12 @@@ ROGUE MODE // 2024.02.08 @ 02:12:23 Player: AzulianBlue Result: Destroyed by D-53 Grenadier with Mini Grenade Launcher Performance ------------- Evolutions (0) 0 Regions Visited (0) 0 Robots Destroyed (0) 0 Value Destroyed (0) 0 Prototype IDs (0) 0 Alien Tech Used (0) 0 Bonus (0) 0 TOTAL SCORE: 0 Bonus ------- None Cogmind --------- Core Integrity 0/250 Matter 158/300 Energy 100/100 System Corruption 0% Temperature Cool (0) Movement Core (50) Location -11/Junkyard Parts ------- > --- POWER (1) -------- (None) > --- PROPULSION (2) --- (None) > --- UTILITY (2) ------ (None) > --- WEAPON (2) ------- (None) > --- INVENTORY (5) ---- (None) Peak State ------------ None Favorites ----------- Power None Propulsion None Utility None Weapon None Build | -11 ------- Run | Jun Slots Evolved . | . Power . | . Propulsion . | . Utility . | . Weapon . | . Parts Attached . | . Power . | . Engine . | . Core . | . Reactor . | . Propulsion . | . Treads . | . Leg . | . Wheel . | . Hover . | . Flight . | . Utility . | . Device . | . Storage . | . Processor . | . Hackware . | . Protection . | . Artifact . | . Weapon . | . Energy Gun . | . Energy Cannon . | . Ballistic Gun . | . Ballistic Cannon . | . Launcher . | . Special Weapon . | . Impact Weapon . | . Slashing Weapon . | . Piercing Weapon . | . Special Melee Weapon . | . Unidentified Prototypes . | . Parts Lost . | . Power . | . Propulsion . | . Utility . | . Weapon . | . Highest Loss Streak . | . To Critical Strikes . | . Average Slot Usage (%) . | . Naked Turns . | . Heaviest Build . | . Greatest Support 3 | 3 Greatest Overweight (x) . | . Average Overweight (x) . | . Largest Inventory Capacity 5 | 5 Average Capacity 5 | 5 Most Carried . | . Average Carried . | . Final Capacity 5 | 5 Final Carried . | . Class Distribution -------------------- None Dominant Class ---------------- None Resources | -11 ----------- Run | Jun Matter Collected 58 | 58 Remotely . | . Salvage Created . | . Parts . | . Haulers Intercepted . | . Recyclers Shooed . | . Parts Field Recycled . | . Retrieved Matter . | . Parts Self-Destructed . | . Prevented . | . Kills | -11 ------- Run | Jun Combat Hostiles Destroyed . | . Classes Destroyed . | . Best Kill Streak . | . Combat Bots Only . | . Max Kills in Single Turn . | . Gunslinging . | . Exploded . | . Melee . | . Uniques/NPCs Destroyed . | . Combat | -11 -------- Run | Jun Damage Taken 253 | 253 Core 253 | 253 Absorbed by Shields . | . Core Remaining (%) . | . Volleys Fired . | . Largest . | . Hottest . | . Shots Fired . | . Gun . | . Cannon . | . Launcher . | . Special . | . Kinetic . | . Thermal . | . Explosive . | . Electromagnetic . | . Robot Hit Streak . | . Robot Miss Streak . | . Penetration Max . | . Secondary Targets . | . Shots Hit Robots . | . Core Hits . | . Critical Kills . | . Critical Parts Destroyed . | . Critical Strikes . | . Melee Attacks . | . Impact . | . Slashing . | . Piercing . | . Sneak Attacks . | . Combat Hostiles . | . Follow-up Attacks . | . Damage Inflicted . | . Guns . | . Cannons . | . Explosions . | . Melee . | . Ramming . | . Kinetic . | . Thermal . | . Explosive . | . Electromagnetic . | . Impact . | . Slashing . | . Piercing . | . Highest Corruption . | . Average Corruption . | . Corruption Purged . | . Corruption Blocked . | . Overload Shots . | . Overflow Damage . | . Projectiles . | . Explosions . | . Melee . | . Knockbacks . | . Impact . | . Kinetic . | . Secondary . | . Self-Inflicted Damage . | . Shots . | . Rammed . | . Targets Rammed . | . Kicked . | . Crushed . | . Highest Temperature . | . Average Temperature . | . Received Heat Transfer . | . Siege Activations . | . Robots Corrupted . | . Combat Hostiles . | . Parts Fried . | . Impact Corruptions . | . Robots Melted . | . Combat Hostiles . | . Parts Melted . | . Heat Transferred . | . Parts Sabotaged . | . Parts Stolen . | . Parts Stripped . | . Power Chain Reactions . | . Missiles Intercepted . | . Alert | -11 ------- Run | Jun Peak Influence . | . Initial . | . Average . | . Maximum Alert Level . | . Low Security (%) 100 | 100 Level 1 . | . Level 2 . | . Level 3 . | . Level 4 . | . Level 5 . | . High Security . | . Max Security . | . Squads Dispatched . | . Investigation . | . Extermination . | . Reinforcement . | . Assault . | . Garrison . | . Intercept . | . Searches Triggered . | . Construction Impeded . | . Haulers Reinforced . | . Active Scanning Responses . | . Cargo Convoy Interrupts . | . Stealth | -11 --------- Run | Jun Distress Signals . | . Communications Jammed . | . Distress Signals . | . Times Spotted 2 | 2 Peak Tracking Total 2 | 2 Tactical Retreats . | . Traps | -11 ------- Run | Jun Traps Triggered . | . Indirectly . | . Trap Hack Attempts . | . Triggered . | . Disarmed . | . Reprogrammed . | . Reused . | . Traps Extracted . | . Installed . | . Triggered . | . Machines | -11 ---------- Run | Jun Machines Disabled . | . Max in Single Turn . | . Machines Repaired . | . Machines Sabotaged . | . Overloaded Fab Kills . | . Hacking | -11 --------- Run | Jun Machines Accessed . | . Terminals . | . Fabricators . | . Repair Stations . | . Recycling Units . | . Scanalyzers . | . Garrison Access . | . Total Hacks . | . Successful . | . Failed . | . Catastrophic . | . Database Lockouts . | . Manual . | . Terminals . | . Fabricators . | . Repair Stations . | . Recycling Units . | . Scanalyzers . | . Garrison Access . | . Terminal Hacks . | . Fabricator Hacks . | . Repair Station Hacks . | . Recycling Unit Hacks . | . Scanalyzer . | . Garrison Access Hacks . | . Unauthorized Hacks . | . Terminals . | . Fabricators . | . Repair Stations . | . Recycling Units . | . Scanalyzers . | . Garrison Access . | . Data Cores Recovered . | . Used . | . Hacking Detections . | . Full Trace Events . | . Feedback Events . | . Feedback Blocked . | . Robot Schematics Acquired . | . Robots Built . | . Authchips . | . Time . | . Total Robot Build Rating . | . Part Schematics Acquired . | . Parts Built . | . Authchips . | . Time . | . Total Part Build Rating . | . Parts Repaired . | . Time . | . Parts Recycled . | . Recycled Matter . | . Retrieved Matter . | . Retrieved Components . | . Parts Scanalyzed . | . Part Schematics Acquired . | . Parts Damaged . | . Bothacking | -11 ------------ Run | Jun Used RIF Installer . | . Robots Hacked . | . Non-combat . | . Combat . | . Robot Hacks Applied . | . Relay Couplers Released . | . Fabnet Peak Effective % . | . Robots Rewired . | . Allies Hacked . | . Hacks Repelled . | . Allies | -11 -------- Run | Jun Total Allies . | . Largest Group . | . Highest-Rated Group . | . Highest-Rated Ally . | . Total Orders . | . Ally Attacks . | . Total Damage . | . Kills . | . Allies Corrupted . | . Allies Melted . | . Intel | -11 ------- Run | Jun Robot Analysis Total . | . Derelict Logs Recovered . | . Drone Launches . | . Drone Recoveries . | . Exploration | -11 ------------- Run | Jun Turns Passed 1587 | 1587 Spaces Moved 7 | 7 Core 7 | 7 Treads . | . Legs . | . Wheels . | . Hover . | . Flight . | . Fastest Speed 50 | 50 Average Speed 50 | 50 Slowest Speed 50 | 50 Overloaded Moves . | . Propulsion Burnouts . | . Robots Hopped . | . Cave-ins Triggered . | . Exploration Rate (%) 7 | 7 Regions Visited . Branch Regions . Pre-discovered Areas . | . Known Exits Taken . | . Unknown Exits Taken . | . Scrap Searched . | . Spaces Dug . | . Terrain Destroyed . | . Melee . | . Projectile . | . AOE . | . Terrain Rammed . | . Walls Destroyed . | . Machines Disabled . | . Actions | -11 --------- Run | Jun Total 1591 | 1591 Wait 1584 | 1584 Move 7 | 7 Hop . | . Pick Up . | . Fast Attach . | . Attach . | . Detach . | . Swap . | . Drop . | . Fire . | . Melee . | . Ram . | . Kick . | . Crush . | . Escape Stasis . | . Rewire . | . Trap . | . Miscellaneous . | . Route ------- -11/Junkyard (discovered 1 exit: [*Mat]) History --------- Turn | Location | Event 852 | -11/Junkyard | Assembled infested the area 894 | -11/Junkyard | Discovered new exit (range 15) 1587 | -11/Junkyard | Core integrity fell below 50% 1588 | -11/Junkyard | Destroyed by D-53 Grenadier with Mini Grenade Launcher Last Messages --------------- Systems online... Loading variables... CORE=STABLE INTEGRATION=OK LOCATION=UNKNOWN GOAL=EXPLORE 00049_ T-07 Excavator is excavating. 00165_ K-01 Serf collects debris. 00475_ T-07 Excavator is excavating. 00523_ K-01 Serf collects debris. 00561_ T-07 Excavator is excavating. 00844_ K-01 Serf collects debris. 00852_ ALERT: Infestation in the junkyard, dispatching Demolisher response squad. [Achievement: Curiosity Killed The Cat] 00894_ EXIT=FOUND 00896_ Acquired 58 matter. 01455_ T-07 Excavator is excavating. 01587_ The unstable cave ceiling collapses. Map ----- +----------------------------------------------------+ | ?????????????????????????????????????????????????? | | ?????????????????????????????????????????????????? | | ?????????????????????????????????????????????????? | | ?????????????????????????????????????????????????? | | ?????????????????????????????????????????????????? | | ?????????????????????????????????????????????????? | | ?????????????????????????????????????????????????? | | ?????????????????????????????????????????????????? | | ?????????????????????????????????????????????????? | | ?????????????????????????????????????????????????? | | ?????????????????????????????????????????????????? | | ?????????????????????????????????????????????????? | | ?????????????????????????????????????????????????? | | ?????????????????????????????????????????????????? | | ?????????????????????????????????????????????????? | | ?????????????????????????????????????????????????? | | ?????????????????????????????????????????????????? | | ?????????????????????????????????????????????????? | | ?????????????????????????????????????????????????? | | ????????????????#????????????????????????????????? | | ????????????????# ????######?????????????????????? | | ????????????????# ?## #####?????????????????? | | ????????????????# t # #?????????????????? | | ???????????#????? # # ????????? | | ???????????# ### # # ?????? | | ???????????# @ d %% ?????? | | ???????????# ! d ?????? | | ???????????# ##### = [ < ?????? | | ????????????????????## = ##### ??????? | | ?????????????????????## = #?????????????????? | | ??????????????????????#### ####?????????????????? | | ?????????????????????????# #????????????????????? | | ?????????????????????????# #????????????????????? | | ????????????????????????? ????????????????????? | | ?????????????????????????# # ???????????????????? | | ?????????????????????????# # ??????????????????? | | ?????????????????????????# ? ?????????????????? | | ?????????????????????????# #?? ????????????????? | | ?????????????????????????# t#??? ???????????????? | | ?????????????????????????# #???###??????????????? | | ?????????????????????????? #????????????????????? | | ?????????????????????????? #????????????????????? | | ?????????????????????????????????????????????????? | | ?????????????????????????????????????????????????? | | ?????????????????????????????????????????????????? | | ?????????????????????????????????????????????????? | | ?????????????????????????????????????????????????? | | ?????????????????????????????????????????????????? | | ?????????????????????????????????????????????????? | | ?????????????????????????????????????????????????? | +----------------------------------------------------+ Best States ------------- Heat Dissipation 25 Energy Generation 5 Energy Capacity 100 Matter Stores 158 Matter Capacity 300 Sight Range 16 Terrain Scan Density 10 Evasion (%) 40 Item Schematics ----------------- None Robot Schematics ------------------ None Fabricated ------------ Nothing Alien Tech Used ----------------- None Achievements -------------- Curiosity Killed The Cat Challenges ------------ None Game ------ Seed BombLatentRouter Manual? 0 Play Time 00:02:32 Cumulative 5.6 hours Start 2024.02.08 @ 02:10:23 End 2024.02.08 @ 02:12:23 Sessions 0 Manual Loads 0 Difficulty Rogue Special Mode None Game No. 22 Rogue 22 Adventurer 0 Explorer 0 Win Type - Total 0 Types 0/0/0/0/0/0/0/0/0 Lore% 10 Gallery% 9 Achievement% 10 Wizard Run 0 Options --------- ASCII 0 Keyboard 0 Movement Numpad Keybinds 0 Fullscreen 1 Font 18/SmallcapsGlow Map View 76x50 Tactical HUD 1 Map Filters NONE Filters NONE Steam 1 RUN: f32dedd3-4e93-4ffd-af86-72cbe3064caf